bitfinex/quotes_BTCUSD_20251104
["timestamp","ask_amount","ask_price","bid_price","bid_amount"]
[1762289949771,2.0,100900.0,100880.0,0.13807]
[1762289950015,0.00891018,100890.0,100870.0,0.13953877]
[1762289950188,2.21705806,100890.0,100860.0,0.00094615]
[1762289950440,2.0,100870.0,100860.0,0.00142904]
[1762289950669,2.34,100870.0,100860.0,0.00142904]
[1762289951016,2.35318838,100870.0,100860.0,0.00142904]
[1762289951404,2.39564838,100870.0,100860.0,0.00142904]
[1762289951808,2.35318838,100870.0,100860.0,0.00142904]
[1762289952245,2.59392338,100870.0,100860.0,0.00142904]
[1762289952540,2.63388032,100870.0,100860.0,0.00142904]
[1762289952694,2.0,100850.0,100810.0,0.14072]
[1762289952938,2.0,100830.0,100810.0,0.14086489]
[1762289953154,2.0,100850.0,100820.0,0.18973877]
[1762289953371,2.0,100860.0,100840.0,0.09427877]
[1762289953579,0.006,100870.0,100840.0,0.09427877]
[1762289953792,0.006,100870.0,100860.0,0.09427877]
[1762289954232,0.006,100870.0,100860.0,0.18973877]
[1762289954887,0.00114763,100890.0,100860.0,0.09546]
[1762289955088,2.0,100880.0,100860.0,0.00014489]
[1762289955320,0.00891018,100870.0,100860.0,0.00014489]
[1762289955506,2.00891018,100880.0,100860.0,0.09560489]
[1762289955787,2.0,100870.0,100860.0,0.00014489]
[1762289955933,2.0,100880.0,100860.0,0.00014489]
[1762289956130,2.34891018,100870.0,100860.0,0.00014489]
[1762289956350,2.34,100870.0,100860.0,0.00014489]
[1762289956954,2.0,100870.0,100860.0,0.00014489]
[1762289957454,0.002,100880.0,100860.0,0.09560489]
[1762289957678,0.002,100880.0,100860.0,0.00014489]
[1762289957923,2.0,100880.0,100860.0,0.00014489]
[1762289958137,2.0,100880.0,100860.0,0.09560489]
[1762289958336,0.002,100870.0,100860.0,0.09560489]
[1762289958508,0.002,100870.0,100860.0,0.14263489]
[1762289958888,0.002,100870.0,100860.0,0.23691366]
[1762289959101,0.002,100870.0,100860.0,0.00014489]
[1762289959317,2.04446,100870.0,100860.0,0.00014489]
[1762289959692,2.580735,100870.0,100860.0,0.00014489]
[1762289959852,2.61033347,100870.0,100860.0,0.00214489]
[1762289960055,2.6105236,100870.0,100860.0,0.00214489]
[1762289960288,2.19829466,100860.0,100850.0,0.00022698]
[1762289960483,2.24089933,100860.0,100850.0,0.00022698]
[1762289960871,2.24089933,100860.0,100800.0,0.09546]
[1762289960872,2.0,100830.0,100800.0,0.09546]
[1762289961072,0.20825218,100840.0,100800.0,0.09546]
[1762289961073,0.00891018,100820.0,100800.0,0.09546]
[1762289961350,0.00891018,100820.0,100810.0,0.04703]
[1762289961351,2.0,100820.0,100810.0,0.04703]
[1762289961635,2.0,100830.0,100810.0,0.04703]
[1762289962033,2.0,100830.0,100800.0,0.001]
[1762289962235,2.0,100810.0,100800.0,0.00148298]
[1762289962533,2.0,100810.0,100800.0,0.00048298]
[1762289963955,2.0,100830.0,100800.0,0.00048298]
[1762289964176,2.0,100820.0,100800.0,0.09594298]
[1762289964373,2.0,100820.0,100800.0,0.00048298]
[1762289965258,2.0,100820.0,100810.0,0.00080732]
[1762289965462,2.002,100820.0,100810.0,0.00080732]
[1762289965669,2.09955697,100820.0,100810.0,0.00080732]
[1762289965870,2.04244,100820.0,100810.0,0.00080732]
[1762289966091,2.38444,100820.0,100810.0,0.00080732]
[1762289966500,2.342,100820.0,100810.0,0.00080732]
[1762289966872,2.002,100820.0,100810.0,0.00080732]
[1762289967274,2.0,100820.0,100810.0,0.00080732]
[1762289967679,2.002,100820.0,100810.0,0.00080732]
[1762289968014,2.6878403,100820.0,100810.0,0.00080732]
[1762289968944,2.71979054,100820.0,100810.0,0.00080732]
[1762289969264,2.56508717,100810.0,100800.0,0.00048298]
[1762289969467,2.60759717,100810.0,100800.0,0.00048298]
[1762289969807,2.58090301,100810.0,100800.0,0.00073537]
[1762289970015,2.61085325,100810.0,100800.0,0.00073537]
[1762289970299,0.34,100790.0,100750.0,0.04703]
[1762289970520,2.0,100770.0,100750.0,0.1426349]
[1762289970721,2.0,100770.0,100750.0,0.87094027]
[1762289970924,2.0,100780.0,100760.0,0.15616]
[1762289971130,2.0,100780.0,100760.0,0.7901866]
[1762289971331,2.0,100780.0,100770.0,0.00075733]
[1762289971752,2.0,100780.0,100770.0,0.15679733]
[1762289971960,2.0,100780.0,100770.0,0.00075733]
[1762289972346,2.0,100790.0,100770.0,0.79082393]
[1762289972522,2.0,100790.0,100780.0,0.29567877]
[1762289972757,0.14199697,100820.0,100780.0,0.29567877]
[1762289972758,2.0,100810.0,100780.0,0.29567877]
[1762289972936,2.0,100790.0,100780.0,0.2014]
[1762289973137,0.02127,100790.0,100760.0,0.18595877]
[1762289973317,0.02127,100790.0,100770.0,0.09168]
[1762289973521,0.00891018,100800.0,100780.0,0.04536]
[1762289973725,2.0,100800.0,100780.0,0.04536]
[1762289973926,2.0,100790.0,100780.0,0.04536]
[1762289974330,0.002,100790.0,100780.0,0.13704]
[1762289974537,0.07223828,100830.0,100780.0,0.92970537]
[1762289974732,0.00891018,100820.0,100790.0,0.15604]
[1762289974972,2.0,100810.0,100780.0,0.86634537]
[1762289975181,2.0,100780.0,100740.0,0.04743]
[1762289975402,2.0,100760.0,100740.0,0.04743]
[1762289975570,2.0,100760.0,100750.0,0.09427877]
[1762289975771,0.34,100770.0,100740.0,0.13911]
[1762289975975,2.0,100760.0,100750.0,0.0001449]
[1762289976705,0.01393043,100820.0,100750.0,0.18610367]
[1762289976933,2.02979859,100810.0,100750.0,0.19610366]
[1762289977092,2.0,100800.0,100790.0,0.09427877]
[1762289977275,2.0,100810.0,100790.0,0.00162919]
[1762289977476,2.0,100820.0,100780.0,0.04536]
[1762289977678,0.00891018,100810.0,100780.0,0.13754484]
[1762289977879,0.00891018,100810.0,100780.0,0.13704]
[1762289978087,2.0,100820.0,100790.0,0.09168]
[1762289978286,2.00891018,100810.0,100780.0,0.13704]
[1762289978505,0.00991018,100810.0,100780.0,0.13704]
[1762289978660,0.001,100810.0,100790.0,0.09168]
[1762289978886,0.001,100810.0,100780.0,0.13704]
[1762289979121,0.001,100810.0,100790.0,0.09168]
[1762289979519,0.01490178,100820.0,100790.0,0.09168]
[1762289979721,0.01490178,100820.0,100800.0,0.04536]
[1762289980362,0.00048239,100820.0,100810.0,0.09002]
[1762289980657,0.01445742,100820.0,100800.0,0.04536]
[1762289980847,2.0,100810.0,100780.0,0.13538]
[1762289981123,0.00891018,100800.0,100780.0,0.13538]
[1762289981420,0.00891018,100800.0,100770.0,0.04692]
[1762289981421,2.02127,100790.0,100770.0,0.04692]
[1762289981652,2.0,100780.0,100740.0,0.13745]
[1762289981921,2.0,100770.0,100750.0,0.18429877]
[1762289982156,2.0,100780.0,100750.0,0.18429877]
[1762289982397,2.0,100780.0,100760.0,0.09002]
[1762289982742,2.0,100780.0,100760.0,0.0901649]
[1762289982944,2.0,100790.0,100770.0,0.09427877]
[1762289983143,2.0,100800.0,100780.0,0.13694]
[1762289983348,0.09955697,100800.0,100780.0,0.13694]
[1762289983527,2.0,100810.0,100790.0,0.0002524]
[1762289983731,2.0,100810.0,100780.0,0.13694]
[1762289983968,2.0,100810.0,100790.0,0.09002]
[1762289984149,2.0,100810.0,100780.0,0.13694]
[1762289985165,1.78423186,100810.0,100780.0,0.13694]
[1762289985394,2.0,100810.0,100780.0,0.13694]
[1762289985568,2.0,100810.0,100790.0,0.09002]
[1762289985955,0.04244,100830.0,100790.0,0.09002]
[1762289985956,2.0,100830.0,100800.0,0.06325]
[1762289986156,0.002,100810.0,100800.0,0.15327]
[1762289986357,2.0,100810.0,100780.0,0.13694]
[1762289986617,2.0,100810.0,100790.0,0.09002]
[1762289986876,0.004,100810.0,100800.0,0.06325]
[1762289987020,2.0,100810.0,100800.0,0.06325]
[1762289987212,2.0,100810.0,100800.0,0.15327]
[1762289987721,0.34,100820.0,100800.0,0.15327]
[1762289987966,0.34,100820.0,100780.0,0.04692]
[1762289987967,2.0,100830.0,100810.0,0.20019]
[1762289988159,2.0,100820.0,100810.0,0.20019]
[1762289988359,2.0,100820.0,100810.0,0.04692]
[1762289988559,2.0,100820.0,100790.0,0.09002]
[1762289988560,2.0,100810.0,100790.0,0.09002]
[1762289988764,2.0,100820.0,100810.0,0.11017]
[1762289989179,2.0,100820.0,100800.0,0.00022716]
[1762289989511,2.0,100820.0,100810.0,0.04692]
[1762289989682,2.0,100820.0,100810.0,0.11017]
[1762289989913,0.00048239,100830.0,100800.0,0.00222716]
[1762289989914,2.0,100810.0,100800.0,0.00222716]
[1762289990115,0.34048239,100830.0,100800.0,0.09024716]
[1762289990116,2.0,100820.0,100800.0,0.09024716]
[1762289990318,2.0,100820.0,100800.0,0.15349716]
[1762289990618,2.0,100820.0,100800.0,0.09024716]
[1762289990821,2.0,100820.0,100800.0,0.00022716]
[1762289991022,2.0,100820.0,100810.0,0.04692]
[1762289991449,2.0,100820.0,100800.0,0.00222716]
[1762289991450,2.0,100810.0,100800.0,0.00222716]
[1762289991587,2.38286,100810.0,100800.0,0.00222716]
[1762289991820,2.53881301,100810.0,100800.0,0.00222716]
[1762289992032,2.58125301,100810.0,100800.0,0.00222716]
[1762289992228,2.58125301,100810.0,100800.0,0.00022716]
[1762289992427,2.68080998,100810.0,100800.0,0.00022716]
[1762289992661,2.48241697,100810.0,100800.0,0.00022716]
[1762289992819,2.43997697,100810.0,100800.0,0.00022716]
[1762289992996,2.64036998,100810.0,100800.0,0.00022716]
[1762289993204,2.48441697,100810.0,100800.0,0.00022716]
[1762289993398,2.48241697,100810.0,100800.0,0.00022716]
[1762289993605,2.43997697,100810.0,100800.0,0.00022716]
[1762289993852,2.44597697,100810.0,100800.0,0.00022716]
[1762289994055,2.34042,100810.0,100800.0,0.00022716]
[1762289994293,0.00048239,100830.0,100800.0,0.15349716]
[1762289994470,2.0,100820.0,100810.0,0.13694]
[1762289994679,0.00048239,100830.0,100820.0,0.06325]
[1762289995547,0.00048239,100830.0,100820.0,0.7872966]
[1762289996185,0.00048239,100830.0,100820.0,0.15327]
[1762289996384,0.00048239,100830.0,100820.0,1.32566993]
[1762289996588,0.00119881,100840.0,100830.0,0.34]
[1762289996763,2.0,100880.0,100850.0,0.6340266]
[1762289996966,0.00014476,100880.0,100860.0,0.09078968]
[1762289997286,0.00014476,100880.0,100870.0,0.04692]
[1762289997649,0.00014476,100880.0,100870.0,0.7709666]
[1762289997845,2.04258476,100880.0,100810.0,0.04692]
[1762289998059,2.04258476,100880.0,100820.0,0.18429877]
[1762289998060,0.00999999,100850.0,100820.0,0.18429877]
[1762289998275,0.00999999,100850.0,100840.0,0.04692]
[1762289998831,0.00999999,100850.0,100830.0,0.09002]
[1762289999142,0.00999999,100850.0,100840.0,0.04692]
[1762289999345,0.00999999,100850.0,100830.0,0.13694]
[1762289999596,0.00999999,100840.0,100830.0,0.13694]
[1762289999818,0.00999999,100840.0,100830.0,0.04692]
[1762290000027,0.00999999,100840.0,100830.0,0.13694]
[1762290000242,0.00999999,100840.0,100830.0,0.04692]
[1762290000648,0.00999999,100830.0,100810.0,0.13694]
[1762290000863,0.22177528,100850.0,100820.0,0.09427877]
[1762290000864,0.03360464,100850.0,100820.0,0.09427877]
[1762290001074,0.01014464,100850.0,100840.0,0.04692]
[1762290001343,0.00014465,100850.0,100840.0,0.11017]
[1762290001575,0.21816135,100900.0,100840.0,0.11017]
[1762290001576,0.25768942,100910.0,100840.0,0.14119877]
[1762290001837,0.00198135,100880.0,100850.0,0.09002]
[1762290002062,0.00198135,100880.0,100850.0,0.11381812]
[1762290002268,0.00198135,100880.0,100860.0,0.18864637]
[1762290002457,0.00198135,100880.0,100870.0,0.04692]
[1762290002845,0.00276302,100880.0,100870.0,0.13694]
[1762290003043,0.00276302,100880.0,100870.0,0.16006188]
[1762290003798,0.00276302,100880.0,100870.0,0.17842592]
[1762290004007,0.00276302,100880.0,100870.0,0.01836404]
[1762290004167,0.00276302,100880.0,100870.0,0.06828404]
[1762290004394,2.02393302,100880.0,100870.0,0.02136404]
[1762290004595,2.02393302,100880.0,100870.0,0.003]
[1762290004596,2.61168837,100880.0,100870.0,0.003]
[1762290004798,2.41353302,100880.0,100870.0,0.003]
[1762290004999,2.71134534,100880.0,100870.0,0.003]
[1762290005547,2.71134534,100880.0,100830.0,0.04692]
[1762290005548,0.00198135,100840.0,100830.0,0.04692]
[1762290005754,0.00198135,100840.0,100830.0,0.06527418]
[1762290005958,0.00198135,100850.0,100830.0,0.69930078]
[1762290006310,0.00198135,100860.0,100840.0,0.81832537]
[1762290006476,0.00198135,100860.0,100840.0,0.83667955]
[1762290006677,0.00198135,100860.0,100840.0,0.10837418]
[1762290006879,0.00198135,100850.0,100840.0,0.01835418]
[1762290007525,0.00198135,100850.0,100840.0,0.10837418]
[1762290008155,0.00198135,100850.0,100840.0,0.01835418]
[1762290008722,0.02127,100880.0,100840.0,0.7489282]
[1762290008986,0.00198135,100870.0,100850.0,0.18523216]
[1762290009100,0.00198135,100870.0,100850.0,0.83667955]
[1762290009299,0.00198135,100870.0,100850.0,0.74665955]
[1762290009502,0.00198135,100870.0,100860.0,0.7240466]
[1762290009701,0.00198135,100870.0,100860.0,0.10837418]
[1762290009917,0.00198135,100870.0,100840.0,0.09002]
[1762290010179,0.00198135,100850.0,100840.0,0.10847839]
[1762290010960,0.00220834,100850.0,100840.0,0.01845839]
[1762290011315,0.02566834,100850.0,100840.0,0.01845839]
[1762290011933,0.07203637,100850.0,100840.0,0.01845839]
[1762290012360,0.03457852,100850.0,100840.0,0.02145839]
[1762290012565,0.08407852,100850.0,100840.0,0.00014465]
[1762290012870,2.62239284,100850.0,100840.0,0.00014465]
[1762290013067,2.61448266,100850.0,100840.0,0.00014465]
[1762290013315,2.68672024,100850.0,100840.0,0.00014465]
[1762290013516,2.0,100820.0,100800.0,0.00140096]
[1762290013673,0.01089153,100810.0,100800.0,0.02020414]
[1762290013889,0.00198135,100810.0,100800.0,0.02020414]
[1762290014228,0.35089153,100810.0,100800.0,0.02020414]
[1762290014405,0.34198135,100810.0,100800.0,0.02020414]
[1762290014605,0.00198135,100810.0,100800.0,0.02020414]
[1762290015006,0.00198135,100810.0,100800.0,0.11609414]
[1762290015187,0.00198135,100810.0,100800.0,0.03181355]
[1762290015395,0.00198135,100810.0,100800.0,0.02020414]
[1762290015592,0.00198135,100810.0,100800.0,0.11609414]
[1762290015910,0.00198135,100820.0,100800.0,0.11609414]
[1762290016112,0.00198135,100820.0,100810.0,0.04973]
[1762290016330,0.00198135,100820.0,100810.0,0.01832079]
[1762290016532,0.00198135,100820.0,100810.0,0.0299302]
[1762290016694,0.02325135,100820.0,100810.0,0.01832079]
[1762290016905,0.00198135,100820.0,100810.0,0.06805079]
[1762290017111,0.00198135,100820.0,100810.0,0.16394079]
[1762290017758,0.00198135,100830.0,100810.0,1.18165072]
[1762290017969,0.00220834,100850.0,100840.0,0.04973]
[1762290018200,0.00220834,100850.0,100840.0,0.16394851]
[1762290018376,0.00220834,100850.0,100840.0,0.06805851]
[1762290018706,0.00220834,100850.0,100840.0,0.16394851]
[1762290019112,0.00235307,100850.0,100840.0,0.16394851]
[1762290019321,0.00235307,100850.0,100840.0,0.01832851]
[1762290019600,0.00198135,100820.0,100810.0,0.04973]
[1762290019747,0.00198135,100820.0,100810.0,0.06806879]
[1762290020356,0.34,100840.0,100810.0,0.16395879]
[1762290020718,0.00198135,100820.0,100810.0,0.16395879]
[1762290020911,0.00198135,100820.0,100810.0,0.18049477]
[1762290021310,0.00198135,100820.0,100810.0,0.06806879]
[1762290021513,0.00198135,100820.0,100810.0,0.16395879]
[1762290022121,0.00198135,100820.0,100810.0,0.16695879]
[1762290022324,0.00198135,100830.0,100810.0,0.16695879]
[1762290022526,0.00198135,100840.0,100820.0,0.19016877]
[1762290022729,0.00037172,100850.0,100840.0,0.04973]
[1762290023029,0.00037172,100850.0,100840.0,0.06806879]
[1762290023267,0.00037172,100850.0,100840.0,0.16395879]
[1762290024244,0.00235307,100850.0,100840.0,0.06806879]
[1762290024613,0.00235307,100850.0,100840.0,0.16395879]
[1762290024813,0.00535307,100850.0,100840.0,0.06806879]
[1762290025016,0.00235307,100850.0,100840.0,0.06806879]
[1762290025410,0.00235307,100850.0,100840.0,0.16695879]
[1762290026058,0.00037172,100850.0,100840.0,0.18365467]
[1762290026370,0.00991669,100840.0,100800.0,0.0094196]
[1762290026504,2.54037436,100810.0,100800.0,0.00140096]
[1762290027004,2.61310436,100810.0,100800.0,0.00140096]
[1762290027223,2.07471135,100810.0,100800.0,0.00140096]
[1762290027451,0.00198135,100810.0,100800.0,0.09729096]
[1762290027653,0.24626701,100850.0,100800.0,0.16401032]
[1762290027654,0.02803699,100850.0,100800.0,0.16401032]
[1762290027869,0.00908135,100840.0,100820.0,0.09427877]
[1762290028231,0.00198135,100830.0,100820.0,0.09427877]
[1762290029085,0.00198135,100830.0,100820.0,0.19016877]
[1762290029305,0.00198135,100830.0,100810.0,0.04196]
[1762290029504,0.00198135,100830.0,100810.0,0.13785]
[1762290029712,0.00198135,100820.0,100810.0,0.13785]
[1762290031700,0.00198135,100830.0,100810.0,0.13885]
[1762290031925,0.00198135,100830.0,100820.0,0.18924877]
[1762290032115,0.0001,100840.0,100820.0,0.21246965]
[1762290032316,0.0001,100840.0,100830.0,0.09497]
[1762290032724,0.00022699,100850.0,100830.0,0.09497]
[1762290032929,0.00022699,100850.0,100840.0,0.18718877]
[1762290033130,0.00022699,100850.0,100840.0,0.14014877]
[1762290033356,0.00022699,100850.0,100840.0,0.25863065]
[1762290033567,0.00022699,100850.0,100840.0,0.30567065]
[1762290033779,0.00022699,100850.0,100840.0,0.21139188]
[1762290033982,0.00022699,100850.0,100840.0,0.21135188]
[1762290034193,0.00037172,100850.0,100840.0,0.16435188]
[1762290034397,0.00037172,100850.0,100840.0,1.06898971]
[1762290034943,0.00037172,100850.0,100840.0,0.21135188]
[1762290035140,0.00037172,100850.0,100840.0,0.30563065]
[1762290035545,0.05108307,100850.0,100820.0,0.18924877]
[1762290035751,0.05108307,100850.0,100810.0,0.04196]
[1762290035752,0.00198135,100830.0,100810.0,0.04196]
[1762290036010,0.00198135,100820.0,100810.0,0.04196]
[1762290036211,0.00198135,100820.0,100800.0,0.09637096]
[1762290036372,0.00891018,100830.0,100800.0,0.09637096]
[1762290036373,0.00198135,100810.0,100800.0,0.09637096]
[1762290036561,0.00198135,100810.0,100800.0,0.12013593]
[1762290037095,0.00198135,100810.0,100800.0,0.02516593]
[1762290037328,0.00198135,100810.0,100800.0,0.09637096]
[1762290037525,0.00198135,100810.0,100800.0,0.09685335]
[1762290038298,0.39202,100840.0,100800.0,0.30518482]
[1762290038299,0.00198135,100830.0,100800.0,0.30518482]
[1762290038504,0.00198135,100830.0,100810.0,0.14014877]
[1762290038745,0.00198135,100830.0,100810.0,0.23511877]
[1762290039259,0.10066699,100850.0,100810.0,0.23511877]
[1762290039402,2.0,100840.0,100810.0,0.23511877]
[1762290040008,0.04895699,100850.0,100820.0,0.09497]
[1762290040213,0.00022699,100850.0,100830.0,0.09427877]
[1762290040411,0.00022699,100850.0,100820.0,0.43497]
[1762290040635,0.10028699,100850.0,100830.0,0.04692]
[1762290040847,2.00891018,100840.0,100820.0,0.34]
[1762290041072,2.0,100830.0,100810.0,0.38628]
[1762290041262,2.0,100830.0,100810.0,0.38928]
[1762290041458,2.0,100840.0,100810.0,0.47751]
[1762290042286,2.0,100840.0,100820.0,0.09427877]
[1762290042504,2.0,100840.0,100820.0,0.18550877]
[1762290043581,0.01014699,100850.0,100830.0,0.09123]
[1762290043749,0.01014699,100850.0,100820.0,0.18550877]
[1762290044282,0.01014699,100850.0,100810.0,0.38628]
[1762290044283,0.10028699,100850.0,100810.0,0.38628]
[1762290044438,2.0,100830.0,100810.0,0.4332]
[1762290044638,2.0,100840.0,100810.0,0.4332]
[1762290044874,2.00891018,100830.0,100810.0,0.4332]
[1762290045074,2.0,100830.0,100810.0,0.4332]
[1762290045277,2.0,100840.0,100810.0,0.47751]
[1762290045483,0.01014699,100850.0,100820.0,0.18550877]
[1762290045766,0.01014699,100850.0,100830.0,0.09123]
[1762290046195,0.00022699,100850.0,100830.0,0.14336256]
[1762290046399,0.01172699,100850.0,100830.0,0.04692]
[1762290046741,0.02063717,100850.0,100830.0,0.04692]
[1762290046884,0.10919717,100850.0,100830.0,0.04692]
[1762290047074,0.02063717,100850.0,100830.0,0.04692]
[1762290047471,0.01172699,100850.0,100830.0,0.060735]
[1762290047674,0.01249699,100850.0,100830.0,0.13815]
[1762290047880,0.01349699,100850.0,100830.0,0.04692]
[1762290048122,0.35349699,100850.0,100830.0,0.04692]
[1762290048521,0.35349699,100850.0,100830.0,0.13815]
[1762290049007,0.35349699,100850.0,100810.0,0.13751]
[1762290049008,0.44129699,100850.0,100810.0,0.13751]
[1762290049210,0.44129699,100850.0,100800.0,0.00188335]
[1762290049211,0.00087,100820.0,100800.0,0.00188335]
[1762290049374,0.03202018,100820.0,100800.0,0.00188335]
[1762290049590,0.02311,100820.0,100800.0,0.00188335]
[1762290049908,0.34,100810.0,100800.0,0.00188335]
[1762290052170,0.34,100810.0,100800.0,0.00388335]
[1762290052171,0.42715,100810.0,100800.0,0.00388335]
[1762290052371,0.34,100810.0,100800.0,0.00388335]
[1762290053633,0.34087,100810.0,100800.0,0.00188335]
[1762290053870,0.42715,100810.0,100800.0,0.00188335]
[1762290054037,0.341,100810.0,100800.0,0.00188335]
[1762290054600,0.341,100810.0,100800.0,0.15677335]
[1762290054829,0.341,100810.0,100800.0,0.00188335]
[1762290055636,0.341,100810.0,100800.0,0.06554335]
[1762290055833,0.34273,100810.0,100800.0,0.00188335]
[1762290056021,2.42817,100810.0,100800.0,0.00188335]
[1762290056488,2.34273,100810.0,100800.0,0.00188335]
[1762290056699,0.44055697,100810.0,100800.0,0.00188335]
[1762290056969,0.341,100810.0,100800.0,0.15677335]
[1762290058132,0.34,100810.0,100800.0,0.15677335]
[1762290058536,0.34,100810.0,100800.0,0.15877335]
[1762290058760,0.01522004,100830.0,100800.0,0.15877335]
[1762290058946,0.09541018,100840.0,100800.0,0.15877335]
[1762290059145,0.1072109,100840.0,100810.0,0.04628]
[1762290059344,0.10146471,100840.0,100810.0,0.13751]
[1762290059890,0.01259699,100850.0,100820.0,0.09123]
[1762290060124,0.004,100840.0,100820.0,0.18550877]
[1762290060502,0.00032699,100850.0,100840.0,0.06366]
[1762290060723,0.00032699,100850.0,100840.0,0.40255276]
[1762290060862,0.00032699,100850.0,100840.0,0.51539755]
[1762290061278,0.00032699,100850.0,100840.0,1.15924194]
[1762290061461,0.02346,100910.0,100860.0,0.20819945]
[1762290061660,0.02346,100910.0,100880.0,0.09427877]
[1762290061661,2.0,100900.0,100880.0,0.09427877]
[1762290061859,2.0,100900.0,100880.0,0.11745765]
[1762290062087,0.02360486,100910.0,100880.0,0.11745765]
[1762290062088,0.02360486,100910.0,100890.0,0.06366]
[1762290062316,0.00014486,100910.0,100900.0,0.04628]
[1762290062953,0.00014486,100910.0,100880.0,0.11745765]
[1762290062954,0.07318486,100910.0,100880.0,0.02317888]
[1762290063092,0.02368486,100910.0,100880.0,0.09123]
[1762290063294,0.03259504,100910.0,100880.0,0.09123]
[1762290063574,0.34,100890.0,100860.0,0.09427877]
[1762290063783,2.0,100860.0,100840.0,0.09427877]
[1762290063964,0.02146,100870.0,100840.0,0.09427877]
[1762290064139,0.02146,100870.0,100840.0,0.10833465]
[1762290064140,0.04928,100850.0,100840.0,0.10833465]
[1762290064546,0.38928,100850.0,100840.0,0.10833465]
[1762290064746,2.04928,100850.0,100840.0,0.10833465]
[1762290065056,2.04932824,100850.0,100840.0,0.01805588]
[1762290065260,4.824e-05,100850.0,100840.0,0.004]
[1762290065880,0.09882824,100850.0,100840.0,0.004]
[1762290066098,0.10773842,100850.0,100810.0,0.04628]
[1762290066295,2.00891018,100840.0,100810.0,0.13751]
[1762290066493,0.00891018,100840.0,100810.0,0.1560291]
[1762290066643,0.00891018,100840.0,100820.0,0.09123]
[1762290066846,0.00891018,100840.0,100810.0,0.0647991]
[1762290067065,0.00891018,100840.0,100810.0,0.1560291]
[1762290067334,2.0,100830.0,100810.0,0.0185191]
[1762290067601,0.03180018,100820.0,100810.0,0.006]
[1762290067793,0.02289,100820.0,100810.0,0.006]
[1762290067941,2.07239,100820.0,100810.0,0.006]
[1762290069116,2.34,100810.0,100770.0,0.14077833]
[1762290069315,2.34,100810.0,100770.0,0.23200833]
[1762290069316,0.0495,100810.0,100770.0,0.23200833]
[1762290069514,0.05841018,100800.0,100770.0,0.09449833]
[1762290070127,0.05841018,100800.0,100770.0,0.09427877]
[1762290070370,0.05845838,100800.0,100770.0,0.09427877]
[1762290070549,0.06045838,100800.0,100770.0,0.09427877]
[1762290071020,0.01095838,100800.0,100770.0,0.18992877]
[1762290071226,0.0020482,100800.0,100770.0,0.18992877]
[1762290071441,0.02354,100790.0,100770.0,0.09427877]
[1762290071901,0.02354,100790.0,100760.0,0.14193]
[1762290072123,0.08195018,100790.0,100760.0,0.04628]
[1762290072356,0.08195018,100790.0,100740.0,0.0004]
[1762290072357,2.0,100760.0,100740.0,0.0004]
[1762290072628,2.38037017,100750.0,100740.0,0.0004]
[1762290072832,2.0,100740.0,100730.0,0.1004]
[1762290073036,2.0491,100740.0,100730.0,0.1004]
[1762290073242,2.0491,100740.0,100730.0,0.10359433]
[1762290073497,2.0491,100740.0,100730.0,0.10407672]
[1762290073723,2.14865697,100740.0,100730.0,0.10407672]
[1762290073915,2.0491,100740.0,100730.0,0.10407672]
[1762290074065,2.24763087,100740.0,100730.0,0.10407672]
[1762290074271,2.0491,100740.0,100730.0,0.10407672]
[1762290074771,2.24763087,100740.0,100730.0,0.10407672]
[1762290074993,2.34718784,100740.0,100730.0,0.10407672]
[1762290075214,2.36718782,100740.0,100730.0,0.10407672]
[1762290075423,2.16865695,100740.0,100730.0,0.10407672]
[1762290075637,2.14865697,100740.0,100730.0,0.10407672]
[1762290075852,2.35718783,100740.0,100730.0,0.10407672]
[1762290076057,2.35118784,100740.0,100730.0,0.10407672]
[1762290076264,2.70118783,100740.0,100730.0,0.10407672]
[1762290076486,2.69718783,100740.0,100730.0,0.10407672]
[1762290076659,2.49865696,100740.0,100730.0,0.10407672]
[1762290076820,2.68718784,100740.0,100730.0,0.10407672]
[1762290077021,2.70718782,100740.0,100730.0,0.10407672]
[1762290077230,2.71318782,100740.0,100730.0,0.10407672]
[1762290078305,2.69318784,100740.0,100730.0,0.10407672]
[1762290078513,2.3951,100740.0,100730.0,0.10407672]
[1762290078721,2.0551,100740.0,100730.0,0.10407672]
[1762290078926,2.59363087,100740.0,100730.0,0.10407672]
[1762290079148,2.3951,100740.0,100730.0,0.10407672]
[1762290079746,2.59363087,100740.0,100730.0,0.10407672]
[1762290080186,2.3951,100740.0,100730.0,0.10407672]
[1762290081228,0.3951,100740.0,100730.0,0.10407672]
[1762290081428,2.3951,100740.0,100730.0,0.10407672]
[1762290083388,2.59363087,100740.0,100730.0,0.10407672]
[1762290083593,2.58763087,100740.0,100730.0,0.10407672]
[1762290083771,2.68918784,100740.0,100730.0,0.10407672]
[1762290083980,2.70918782,100740.0,100730.0,0.10357672]
[1762290085146,2.69918783,100740.0,100730.0,0.10357672]
[1762290085342,2.69718783,100740.0,100730.0,0.10357672]
[1762290085522,2.49865696,100740.0,100730.0,0.10357672]
[1762290085727,2.69718783,100740.0,100730.0,0.10357672]
[1762290086125,2.70318783,100740.0,100730.0,0.10357672]
[1762290087463,2.49465697,100740.0,100730.0,0.10357672]
[1762290087665,2.70318783,100740.0,100730.0,0.10357672]
[1762290087884,2.50465696,100740.0,100730.0,0.10357672]
[1762290088362,2.49465697,100740.0,100730.0,0.10357672]
[1762290088568,2.70318783,100740.0,100730.0,0.10357672]
[1762290089949,2.71318782,100740.0,100730.0,0.10357672]
[1762290090756,2.70318783,100740.0,100730.0,0.10357672]
[1762290092023,2.71318782,100740.0,100730.0,0.09005729]
[1762290092233,2.7394257,100740.0,100730.0,0.09005729]
[1762290092412,2.78606617,100740.0,100730.0,0.09005729]
[1762290093194,2.81230405,100740.0,100730.0,0.09005729]
[1762290093406,2.79125268,100740.0,100730.0,0.09005729]
[1762290094214,2.80125267,100740.0,100730.0,0.09005729]
[1762290095199,0.21855056,100730.0,100720.0,0.00044]
[1762290095408,2.41599753,100730.0,100720.0,0.0005849]
[1762290095618,2.42599752,100730.0,100720.0,0.0005849]
[1762290096270,2.21858999,100710.0,100700.0,0.0004]
[1762290096502,2.21907999,100710.0,100700.0,0.0004483]
[1762290096698,2.33027975,100710.0,100700.0,0.0004483]
[1762290096835,2.40386495,100710.0,100700.0,0.0004483]
[1762290097043,2.21860971,100700.0,100690.0,0.0004]